[Event "Titled Tuesday Blitz December 20 Late 2022"]
[White "Keymer, Vincent"]
[Black "Indjic, Aleksandar"]
[WhiteFideId "12940690"]
[BlackFideId "911925"]
[WhiteElo "2600"]
[BlackElo "2616"]
[Result "1-0"]
[Round "09"]
[TimeControl "180+1"]
[Date "2022.12.20"]
[WhiteClock "0:00:06"]
[BlackClock "0:00:07"]

1. Nf3 {[%clk 0:03:00]}  c5 {[%clk 0:02:57]} 2. c4 {[%clk 0:03:01]}  Nc6 {[%clk 0:02:57]} 3. Nc3 {[%clk 0:03:00]}  g6 {[%clk 0:02:57]} 4. e3 {[%clk 0:03:00]}  Bg7 {[%clk 0:02:58]} 5. d4 {[%clk 0:03:01]}  d6 {[%clk 0:02:58]} 6. Be2 {[%clk 0:03:01]}  Nf6 {[%clk 0:02:57]} 7. d5 {[%clk 0:03:01]}  Na5 {[%clk 0:02:55]} 8. h3 {[%clk 0:02:56]}  O-O {[%clk 0:02:55]} 9. e4 {[%clk 0:02:53]}  e5 {[%clk 0:02:55]} 10. O-O {[%clk 0:02:48]}  h6 {[%clk 0:02:52]} 11. a3 {[%clk 0:02:44]}  b6 {[%clk 0:02:52]} 12. b4 {[%clk 0:02:41]}  Nb7 {[%clk 0:02:51]} 13. Re1 {[%clk 0:02:29]}  Nh7 {[%clk 0:02:49]} 14. Rb1 {[%clk 0:02:05]}  f5 {[%clk 0:02:47]} 15. Bd2 {[%clk 0:02:05]}  f4 {[%clk 0:02:44]} 16. a4 {[%clk 0:01:53]}  cxb4 {[%clk 0:02:42]} 17. Rxb4 {[%clk 0:01:53]}  Bd7 {[%clk 0:02:41]} 18. Nh2 {[%clk 0:01:49]}  h5 {[%clk 0:02:40]} 19. Rb1 {[%clk 0:01:41]}  Nc5 {[%clk 0:02:38]} 20. a5 {[%clk 0:01:40]}  Nf6 {[%clk 0:02:31]} 21. axb6 {[%clk 0:01:39]}  axb6 {[%clk 0:02:31]} 22. Nf3 {[%clk 0:01:29]}  Bh6 {[%clk 0:02:27]} 23. Ra1 {[%clk 0:01:08]}  Rxa1 {[%clk 0:02:21]} 24. Qxa1 {[%clk 0:01:09]}  g5 {[%clk 0:02:21]} 25. Nh2 {[%clk 0:01:02]}  g4 {[%clk 0:02:20]} 26. Qd1 {[%clk 0:01:01]}  Qc8 {[%clk 0:02:16]} 27. Bc1 {[%clk 0:00:53]}  Kf7 {[%clk 0:02:12]} 28. Nb5 {[%clk 0:00:37]}  Bxb5 {[%clk 0:02:02]} 29. cxb5 {[%clk 0:00:36]}  Rg8 {[%clk 0:02:02]} 30. hxg4 {[%clk 0:00:32]}  hxg4 {[%clk 0:02:01]} 31. Ba3 {[%clk 0:00:33]}  f3 {[%clk 0:01:58]} 32. Bd3 {[%clk 0:00:26]}  Bf4 {[%clk 0:01:58]} 33. g3 {[%clk 0:00:26]}  Bh6 {[%clk 0:01:47]} 34. Bxc5 {[%clk 0:00:23]}  Qxc5 {[%clk 0:01:46]} 35. Nxf3 {[%clk 0:00:23]}  gxf3 {[%clk 0:01:44]} 36. Qxf3 {[%clk 0:00:24]}  Ke7 {[%clk 0:01:40]} 37. Kg2 {[%clk 0:00:22]}  Qc8 {[%clk 0:01:15]} 38. Ra1 {[%clk 0:00:16]}  Qg4 {[%clk 0:01:11]} 39. Ra7+ {[%clk 0:00:16]}  Nd7 {[%clk 0:01:12]} 40. Be2 {[%clk 0:00:12]}  Qxf3+ {[%clk 0:01:10]} 41. Bxf3 {[%clk 0:00:13]}  Bd2 {[%clk 0:00:35]} 42. Kh3 {[%clk 0:00:11]}  Rh8+ {[%clk 0:00:34]} 43. Kg2 {[%clk 0:00:11]}  Rg8 {[%clk 0:00:34]} 44. Kh3 {[%clk 0:00:11]}  Rd8 {[%clk 0:00:30]} 45. Bg4 {[%clk 0:00:10]}  Ke8 {[%clk 0:00:31]} 46. Bf5 {[%clk 0:00:08]}  Nf6 {[%clk 0:00:24]} 47. Rb7 {[%clk 0:00:05]}  Ba5 {[%clk 0:00:16]} 48. g4 {[%clk 0:00:05]}  Kf8 {[%clk 0:00:15]} 49. g5 {[%clk 0:00:05]}  Ng8 {[%clk 0:00:16]} 50. Be6 {[%clk 0:00:03]}  Ne7 {[%clk 0:00:15]} 51. Kg4 {[%clk 0:00:04]}  Be1 {[%clk 0:00:13]} 52. f3 {[%clk 0:00:04]}  Bd2 {[%clk 0:00:13]} 53. Rxb6 {[%clk 0:00:04]}  Ra8 {[%clk 0:00:11]} 54. Rb7 {[%clk 0:00:04]}  Ra1 {[%clk 0:00:11]} 55. b6 {[%clk 0:00:02]}  Rg1+ {[%clk 0:00:10]} 56. Kh3 {[%clk 0:00:02]}  Ng6 {[%clk 0:00:11]} 57. Rf7+ {[%clk 0:00:02]}  Ke8 {[%clk 0:00:10]} 58. b7 {[%clk 0:00:03]}  Rb1 {[%clk 0:00:07]} 59. Rg7 {[%clk 0:00:03]}  Nf4+ {[%clk 0:00:07]} 60. Kg4 {[%clk 0:00:04]}  Nxe6 {[%clk 0:00:06]} 61. dxe6 {[%clk 0:00:04]}  Rb3 {[%clk 0:00:07]} 62. Rg8+ {[%clk 0:00:03]}  Ke7 {[%clk 0:00:06]} 63. b8=Q {[%clk 0:00:04]}  Rxb8 {[%clk 0:00:06]} 64. Rxb8 {[%clk 0:00:05]}  Kxe6 {[%clk 0:00:06]} 65. Rf8 {[%clk 0:00:05]}  d5 {[%clk 0:00:06]} 66. exd5+ {[%clk 0:00:05]}  Kxd5 {[%clk 0:00:06]} 67. g6 {[%clk 0:00:06]}  Ke6 {[%clk 0:00:07]} 68. g7 {[%clk 0:00:06]} 1-0


[Site "https://www.chess.com"]

[Event "Titled Tuesday Blitz December 20 Late 2022"]
[White "Kleiman, Jake"]
[Black "Fiorito, Francisco"]
[WhiteFideId "2020041"]
[BlackFideId "180165"]
[WhiteElo "2663"]
[BlackElo "2348"]
[Result "0-1"]
[Round "09"]
[TimeControl "180+1"]
[Date "2022.12.20"]
[WhiteClock "0:00:07"]
[BlackClock "0:00:04"]

1. e4 {[%clk 0:03:00]}  c5 {[%clk 0:02:59]} 2. c3 {[%clk 0:03:00]}  Nf6 {[%clk 0:02:58]} 3. e5 {[%clk 0:03:00]}  Nd5 {[%clk 0:02:59]} 4. Bc4 {[%clk 0:03:01]}  Nb6 {[%clk 0:02:59]} 5. Bb3 {[%clk 0:03:02]}  d5 {[%clk 0:02:58]} 6. exd6 {[%clk 0:03:03]}  Qxd6 {[%clk 0:02:58]} 7. Nf3 {[%clk 0:03:03]}  Nc6 {[%clk 0:02:58]} 8. O-O {[%clk 0:03:02]}  g6 {[%clk 0:02:56]} 9. d4 {[%clk 0:03:00]}  cxd4 {[%clk 0:02:56]} 10. cxd4 {[%clk 0:02:53]}  Bg7 {[%clk 0:02:57]} 11. Nc3 {[%clk 0:02:51]}  O-O {[%clk 0:02:52]} 12. d5 {[%clk 0:02:52]}  Na5 {[%clk 0:02:50]} 13. Ne4 {[%clk 0:02:46]}  Qd8 {[%clk 0:02:46]} 14. d6 {[%clk 0:02:44]}  Nxb3 {[%clk 0:02:44]} 15. axb3 {[%clk 0:02:42]}  exd6 {[%clk 0:02:41]} 16. Nxd6 {[%clk 0:02:42]}  Be6 {[%clk 0:02:32]} 17. Bg5 {[%clk 0:02:27]}  Qd7 {[%clk 0:02:31]} 18. Ne4 {[%clk 0:02:06]}  Qxd1 {[%clk 0:02:28]} 19. Rfxd1 {[%clk 0:02:06]}  Bxb3 {[%clk 0:02:29]} 20. Rd2 {[%clk 0:02:02]}  Nc4 {[%clk 0:02:11]} 21. Rd7 {[%clk 0:02:01]}  Bxb2 {[%clk 0:02:09]} 22. Re1 {[%clk 0:01:55]}  Rfe8 {[%clk 0:02:05]} 23. Rxb7 {[%clk 0:01:48]}  Bc2 {[%clk 0:02:04]} 24. Nf6+ {[%clk 0:01:47]}  Bxf6 {[%clk 0:02:03]} 25. Bxf6 {[%clk 0:01:48]}  Be4 {[%clk 0:02:02]} 26. Rc7 {[%clk 0:01:33]}  Bxf3 {[%clk 0:01:43]} 27. Rxe8+ {[%clk 0:01:29]}  Rxe8 {[%clk 0:01:43]} 28. gxf3 {[%clk 0:01:30]}  Nd2 {[%clk 0:01:44]} 29. Rxa7 {[%clk 0:01:15]}  Nxf3+ {[%clk 0:01:43]} 30. Kg2 {[%clk 0:01:16]}  Ne1+ {[%clk 0:01:44]} 31. Kg3 {[%clk 0:01:14]}  Nd3 {[%clk 0:01:44]} 32. Rc7 {[%clk 0:01:00]}  h6 {[%clk 0:01:39]} 33. h4 {[%clk 0:00:59]}  Nb4 {[%clk 0:01:29]} 34. Rd7 {[%clk 0:00:55]}  Nc6 {[%clk 0:01:27]} 35. f4 {[%clk 0:00:55]}  Nb4 {[%clk 0:01:22]} 36. Kg4 {[%clk 0:00:51]}  Nc2 {[%clk 0:01:19]} 37. Be5 {[%clk 0:00:34]}  Ne3+ {[%clk 0:01:15]} 38. Kh3 {[%clk 0:00:33]}  h5 {[%clk 0:01:10]} 39. Ra7 {[%clk 0:00:29]}  Ng4 {[%clk 0:01:06]} 40. Ba1 {[%clk 0:00:25]}  Kf8 {[%clk 0:01:01]} 41. Kg3 {[%clk 0:00:23]}  Re3+ {[%clk 0:01:00]} 42. Kg2 {[%clk 0:00:24]}  Re2+ {[%clk 0:01:00]} 43. Kg3 {[%clk 0:00:23]}  Re8 {[%clk 0:00:53]} 44. Bd4 {[%clk 0:00:22]}  Nh6 {[%clk 0:00:53]} 45. Bc5+ {[%clk 0:00:19]}  Kg7 {[%clk 0:00:52]} 46. Bd4+ {[%clk 0:00:19]}  Kg8 {[%clk 0:00:52]} 47. Be5 {[%clk 0:00:19]}  Ng4 {[%clk 0:00:51]} 48. Kh3 {[%clk 0:00:20]}  Nxe5 {[%clk 0:00:51]} 49. fxe5 {[%clk 0:00:20]}  Rxe5 {[%clk 0:00:52]} 50. Ra3 {[%clk 0:00:20]}  Kg7 {[%clk 0:00:53]} 51. Rf3 {[%clk 0:00:21]}  f5 {[%clk 0:00:53]} 52. Kg3 {[%clk 0:00:21]}  Kf6 {[%clk 0:00:53]} 53. Ra3 {[%clk 0:00:21]}  Re6 {[%clk 0:00:52]} 54. Rb3 {[%clk 0:00:21]}  g5 {[%clk 0:00:53]} 55. hxg5+ {[%clk 0:00:21]}  Kxg5 {[%clk 0:00:54]} 56. Rc3 {[%clk 0:00:20]}  Rd6 {[%clk 0:00:49]} 57. Rf3 {[%clk 0:00:19]}  Rd4 {[%clk 0:00:45]} 58. Ra3 {[%clk 0:00:19]}  Rg4+ {[%clk 0:00:43]} 59. Kh3 {[%clk 0:00:20]}  h4 {[%clk 0:00:39]} 60. Rb3 {[%clk 0:00:19]}  Re4 {[%clk 0:00:36]} 61. Ra3 {[%clk 0:00:19]}  Re5 {[%clk 0:00:35]} 62. Rb3 {[%clk 0:00:19]}  f4 {[%clk 0:00:36]} 63. Rb8 {[%clk 0:00:16]}  Re3+ {[%clk 0:00:35]} 64. Kh2 {[%clk 0:00:16]}  Kg4 {[%clk 0:00:34]} 65. Rg8+ {[%clk 0:00:15]}  Kf3 {[%clk 0:00:34]} 66. Rf8 {[%clk 0:00:16]}  Re4 {[%clk 0:00:27]} 67. Kh3 {[%clk 0:00:14]}  Kf2 {[%clk 0:00:13]} 68. Kxh4 {[%clk 0:00:14]}  f3+ {[%clk 0:00:13]} 69. Kh3 {[%clk 0:00:14]}  Re7 {[%clk 0:00:11]} 70. Kg4 {[%clk 0:00:12]}  Rg7+ {[%clk 0:00:11]} 71. Kf4 {[%clk 0:00:11]}  Kg2 {[%clk 0:00:09]} 72. Ke3 {[%clk 0:00:10]}  Re7+ {[%clk 0:00:08]} 73. Kd2 {[%clk 0:00:10]}  f2 {[%clk 0:00:09]} 74. Rg8+ {[%clk 0:00:11]}  Kf1 {[%clk 0:00:09]} 75. Rg5 {[%clk 0:00:07]}  Rd7+ {[%clk 0:00:09]} 76. Ke3 {[%clk 0:00:08]}  Ke1 {[%clk 0:00:08]} 77. Ra5 {[%clk 0:00:07]}  f1=Q {[%clk 0:00:05]} 78. Ra1+ {[%clk 0:00:06]}  Rd1 {[%clk 0:00:06]} 79. Ra2 {[%clk 0:00:07]}  Qg1+ {[%clk 0:00:05]} 80. Kf3 {[%clk 0:00:06]}  Qf1+ {[%clk 0:00:04]} 81. Ke3 {[%clk 0:00:07]}  Rd3+ {[%clk 0:00:03]} 82. Ke4 {[%clk 0:00:07]}  Qf3+ {[%clk 0:00:04]} 0-1


[Site "https://www.chess.com"]

[Event "Titled Tuesday Blitz December 20 Late 2022"]
[White "Kleinman, Michael"]
[Black "Bjelobrk, Igor"]
[WhiteFideId "2609479"]
[BlackFideId "4300726"]
[WhiteElo "2455"]
[BlackElo "2678"]
[Result "1-0"]
[Round "09"]
[TimeControl "180+1"]
[Date "2022.12.21"]
[WhiteClock "0:00:05"]
[BlackClock "0:00:01"]

1. e4 {[%clk 0:03:00]}  c5 {[%clk 0:02:53]} 2. Nf3 {[%clk 0:03:00]}  e6 {[%clk 0:02:52]} 3. d4 {[%clk 0:03:00]}  cxd4 {[%clk 0:02:53]} 4. Nxd4 {[%clk 0:03:01]}  Nf6 {[%clk 0:02:53]} 5. Bd3 {[%clk 0:03:00]}  Nc6 {[%clk 0:02:53]} 6. Nxc6 {[%clk 0:02:59]}  bxc6 {[%clk 0:02:52]} 7. O-O {[%clk 0:02:59]}  d5 {[%clk 0:02:53]} 8. Nc3 {[%clk 0:02:59]}  Be7 {[%clk 0:02:51]} 9. Qe2 {[%clk 0:02:59]}  O-O {[%clk 0:02:50]} 10. b3 {[%clk 0:02:57]}  Nd7 {[%clk 0:02:44]} 11. Bb2 {[%clk 0:02:57]}  Nc5 {[%clk 0:02:44]} 12. Rad1 {[%clk 0:02:52]}  Nxd3 {[%clk 0:02:44]} 13. cxd3 {[%clk 0:02:52]}  Re8 {[%clk 0:02:40]} 14. Na4 {[%clk 0:02:51]}  Bf8 {[%clk 0:02:39]} 15. Qe3 {[%clk 0:02:49]}  e5 {[%clk 0:02:36]} 16. Rc1 {[%clk 0:02:40]}  Re6 {[%clk 0:01:58]} 17. Nc5 {[%clk 0:02:32]}  Re8 {[%clk 0:01:57]} 18. Na4 {[%clk 0:02:30]}  Qd6 {[%clk 0:01:51]} 19. Rc2 {[%clk 0:02:24]}  d4 {[%clk 0:01:25]} 20. Qg3 {[%clk 0:02:21]}  Re7 {[%clk 0:01:22]} 21. Nc5 {[%clk 0:02:14]}  Qg6 {[%clk 0:01:16]} 22. f4 {[%clk 0:02:10]}  Qxg3 {[%clk 0:01:15]} 23. hxg3 {[%clk 0:02:11]}  f6 {[%clk 0:01:14]} 24. f5 {[%clk 0:01:38]}  Rc7 {[%clk 0:01:13]} 25. Kf2 {[%clk 0:01:24]}  a5 {[%clk 0:01:12]} 26. Rfc1 {[%clk 0:01:18]}  Be7 {[%clk 0:01:04]} 27. Na4 {[%clk 0:01:17]}  Ra6 {[%clk 0:01:01]} 28. g4 {[%clk 0:01:11]}  Kf7 {[%clk 0:00:57]} 29. Ke2 {[%clk 0:01:00]}  Bd6 {[%clk 0:00:54]} 30. Rh1 {[%clk 0:00:59]}  h6 {[%clk 0:00:53]} 31. Rhc1 {[%clk 0:00:59]}  Ke7 {[%clk 0:00:53]} 32. Nc5 {[%clk 0:00:53]}  Raa7 {[%clk 0:00:52]} 33. Na4 {[%clk 0:00:53]}  Bd7 {[%clk 0:00:52]} 34. Ba1 {[%clk 0:00:39]}  Be8 {[%clk 0:00:45]} 35. Bb2 {[%clk 0:00:40]}  Rab7 {[%clk 0:00:37]} 36. Ba1 {[%clk 0:00:39]}  Bf7 {[%clk 0:00:29]} 37. Bb2 {[%clk 0:00:35]}  Kd7 {[%clk 0:00:25]} 38. Ba1 {[%clk 0:00:30]}  Rb5 {[%clk 0:00:24]} 39. Nc5+ {[%clk 0:00:22]}  Bxc5 {[%clk 0:00:24]} 40. Rxc5 {[%clk 0:00:23]}  a4 {[%clk 0:00:18]} 41. bxa4 {[%clk 0:00:19]}  Rxc5 {[%clk 0:00:15]} 42. Rxc5 {[%clk 0:00:18]}  Bxa2 {[%clk 0:00:16]} 43. a5 {[%clk 0:00:16]}  Bb3 {[%clk 0:00:14]} 44. Bb2 {[%clk 0:00:14]}  Ba4 {[%clk 0:00:14]} 45. Ba3 {[%clk 0:00:14]}  Rb7 {[%clk 0:00:14]} 46. Rc1 {[%clk 0:00:13]}  Rb3 {[%clk 0:00:14]} 47. Bf8 {[%clk 0:00:12]}  Bb5 {[%clk 0:00:12]} 48. Rd1 {[%clk 0:00:12]}  c5 {[%clk 0:00:05]} 49. Bxg7 {[%clk 0:00:11]}  c4 {[%clk 0:00:05]} 50. dxc4 {[%clk 0:00:12]}  Bxc4+ {[%clk 0:00:06]} 51. Kf2 {[%clk 0:00:11]}  Ke7 {[%clk 0:00:05]} 52. Bxh6 {[%clk 0:00:11]}  Ra3 {[%clk 0:00:04]} 53. Bd2 {[%clk 0:00:08]}  Kf7 {[%clk 0:00:01]} 54. Rc1 {[%clk 0:00:08]}  Bd3 {[%clk 0:00:02]} 55. Rc7+ {[%clk 0:00:08]}  Ke8 {[%clk 0:00:02]} 56. Bb4 {[%clk 0:00:05]}  Ra2+ {[%clk 0:00:02]} 57. Kg3 {[%clk 0:00:05]}  Bxe4 {[%clk 0:00:02]} 58. Kh4 {[%clk 0:00:05]}  d3 {[%clk 0:00:01]} 59. Kh5 {[%clk 0:00:05]} 1-0


[Site "https://www.chess.com"]

[Event "Titled Tuesday Blitz December 20 Late 2022"]
[White "Maksimovic, Bojan"]
[Black "Kamsky, Gata"]
[WhiteFideId "14408120"]
[BlackFideId "2000024"]
[WhiteElo "2462"]
[BlackElo "2666"]
[Result "0-1"]
[Round "09"]
[TimeControl "180+1"]
[Date "2022.12.20"]
[WhiteClock "0:00:06"]
[BlackClock "0:00:21"]

1. Nf3 {[%clk 0:03:00]}  Nf6 {[%clk 0:02:57]} 2. g3 {[%clk 0:03:01]}  g6 {[%clk 0:02:57]} 3. Bg2 {[%clk 0:03:01]}  Bg7 {[%clk 0:02:55]} 4. O-O {[%clk 0:03:02]}  O-O {[%clk 0:02:54]} 5. d3 {[%clk 0:03:02]}  d6 {[%clk 0:02:54]} 6. c3 {[%clk 0:03:03]}  c5 {[%clk 0:02:53]} 7. Qc2 {[%clk 0:03:03]}  Nc6 {[%clk 0:02:53]} 8. Nbd2 {[%clk 0:03:02]}  Qc7 {[%clk 0:02:50]} 9. a3 {[%clk 0:03:02]}  b6 {[%clk 0:02:46]} 10. b3 {[%clk 0:03:02]}  Bb7 {[%clk 0:02:46]} 11. Rb1 {[%clk 0:03:01]}  Rac8 {[%clk 0:02:44]} 12. Bb2 {[%clk 0:03:01]}  d5 {[%clk 0:02:40]} 13. Rfe1 {[%clk 0:03:02]}  e5 {[%clk 0:02:40]} 14. e4 {[%clk 0:03:02]}  d4 {[%clk 0:02:36]} 15. c4 {[%clk 0:03:01]}  a5 {[%clk 0:02:34]} 16. Bc1 {[%clk 0:02:59]}  Ne8 {[%clk 0:02:34]} 17. Nf1 {[%clk 0:02:58]}  Nd6 {[%clk 0:02:34]} 18. Bd2 {[%clk 0:02:59]}  h6 {[%clk 0:02:26]} 19. h4 {[%clk 0:02:55]}  Rce8 {[%clk 0:02:25]} 20. N1h2 {[%clk 0:02:52]}  f5 {[%clk 0:02:24]} 21. exf5 {[%clk 0:02:49]}  gxf5 {[%clk 0:02:24]} 22. Kh1 {[%clk 0:02:30]}  e4 {[%clk 0:02:24]} 23. Ng1 {[%clk 0:02:30]}  Ne5 {[%clk 0:02:22]} 24. dxe4 {[%clk 0:02:29]}  fxe4 {[%clk 0:02:21]} 25. Bf4 {[%clk 0:02:29]}  Nd3 {[%clk 0:02:19]} 26. Nh3 {[%clk 0:02:09]}  Nxe1 {[%clk 0:02:11]} 27. Rxe1 {[%clk 0:02:10]}  Qd7 {[%clk 0:01:57]} 28. h5 {[%clk 0:01:56]}  Nf5 {[%clk 0:01:53]} 29. Kg1 {[%clk 0:01:46]}  e3 {[%clk 0:01:44]} 30. Bxb7 {[%clk 0:01:37]}  Qxb7 {[%clk 0:01:42]} 31. fxe3 {[%clk 0:01:33]}  Nxe3 {[%clk 0:01:41]} 32. Bxe3 {[%clk 0:01:33]}  Rxe3 {[%clk 0:01:36]} 33. Rxe3 {[%clk 0:01:30]}  dxe3 {[%clk 0:01:37]} 34. Nf4 {[%clk 0:01:30]}  Re8 {[%clk 0:01:09]} 35. Qe2 {[%clk 0:01:30]}  Qe4 {[%clk 0:01:06]} 36. Nf3 {[%clk 0:01:17]}  Rd8 {[%clk 0:01:03]} 37. Ng2 {[%clk 0:01:11]}  Rd3 {[%clk 0:00:58]} 38. Qc2 {[%clk 0:00:42]}  e2 {[%clk 0:00:39]} 39. Nge1 {[%clk 0:00:37]}  Re3 {[%clk 0:00:35]} 40. Qxe4 {[%clk 0:00:16]}  Rxe4 {[%clk 0:00:35]} 41. Kf2 {[%clk 0:00:17]}  Bc3 {[%clk 0:00:33]} 42. Nc2 {[%clk 0:00:13]}  Kf7 {[%clk 0:00:32]} 43. a4 {[%clk 0:00:10]}  Kf6 {[%clk 0:00:30]} 44. g4 {[%clk 0:00:04]}  e1=Q+ {[%clk 0:00:27]} 45. Ncxe1 {[%clk 0:00:03]}  Bxe1+ {[%clk 0:00:28]} 46. Nxe1 {[%clk 0:00:04]}  Rxg4 {[%clk 0:00:25]} 47. Nc2 {[%clk 0:00:05]}  Rh4 {[%clk 0:00:23]} 48. Ne3 {[%clk 0:00:04]}  Rxh5 {[%clk 0:00:23]} 49. Kg3 {[%clk 0:00:05]}  Rh1 {[%clk 0:00:21]} 50. Nd5+ {[%clk 0:00:05]}  Ke5 {[%clk 0:00:22]} 51. Nxb6 {[%clk 0:00:06]}  Rb1 {[%clk 0:00:21]} 0-1


[Site "https://www.chess.com"]

[Event "Titled Tuesday Blitz December 20 Late 2022"]
[White "Mekhitarian, Krikor Sevag"]
[Black "Alex_Sahakyan2006"]
[WhiteFideId "2107660"]
[WhiteElo "2810"]
[BlackElo "2629"]
[Result "1-0"]
[Round "09"]
[TimeControl "180+1"]
[Date "2022.12.21"]
[WhiteClock "0:00:03"]
[BlackClock "0:00:07"]

1. Nf3 {[%clk 0:03:00]}  g6 {[%clk 0:02:55]} 2. c4 {[%clk 0:02:59]}  Bg7 {[%clk 0:02:54]} 3. e4 {[%clk 0:02:59]}  d6 {[%clk 0:02:52]} 4. d4 {[%clk 0:02:59]}  Nf6 {[%clk 0:02:53]} 5. Nc3 {[%clk 0:02:57]}  O-O {[%clk 0:02:53]} 6. h3 {[%clk 0:02:56]}  e5 {[%clk 0:02:48]} 7. d5 {[%clk 0:02:56]}  a5 {[%clk 0:02:37]} 8. Be3 {[%clk 0:02:55]}  Na6 {[%clk 0:02:37]} 9. g4 {[%clk 0:02:55]}  Nc5 {[%clk 0:02:36]} 10. Nd2 {[%clk 0:02:55]}  h5 {[%clk 0:02:19]} 11. Rg1 {[%clk 0:02:47]}  hxg4 {[%clk 0:02:14]} 12. hxg4 {[%clk 0:02:47]}  Nh7 {[%clk 0:02:14]} 13. g5 {[%clk 0:02:45]}  f5 {[%clk 0:02:14]} 14. gxf6 {[%clk 0:02:45]}  Qxf6 {[%clk 0:02:14]} 15. Qe2 {[%clk 0:02:13]}  b6 {[%clk 0:02:05]} 16. O-O-O {[%clk 0:02:13]}  Ba6 {[%clk 0:02:04]} 17. Kb1 {[%clk 0:02:10]}  Rf7 {[%clk 0:01:56]} 18. Qg4 {[%clk 0:02:10]}  Nf8 {[%clk 0:01:51]} 19. Be2 {[%clk 0:02:03]}  Bc8 {[%clk 0:01:46]} 20. Qg3 {[%clk 0:02:00]}  Bd7 {[%clk 0:01:45]} 21. Rh1 {[%clk 0:02:00]}  a4 {[%clk 0:01:33]} 22. Rdg1 {[%clk 0:01:59]}  Re8 {[%clk 0:01:30]} 23. Qh2 {[%clk 0:01:53]}  c6 {[%clk 0:01:18]} 24. Rg2 {[%clk 0:01:50]}  Qd8 {[%clk 0:01:14]} 25. Bg5 {[%clk 0:00:56]}  Qa8 {[%clk 0:01:07]} 26. Rhg1 {[%clk 0:00:35]}  b5 {[%clk 0:00:57]} 27. cxb5 {[%clk 0:00:22]}  cxd5 {[%clk 0:00:50]} 28. Nxd5 {[%clk 0:00:20]}  Nxe4 {[%clk 0:00:49]} 29. Nxe4 {[%clk 0:00:19]}  Qxd5 {[%clk 0:00:49]} 30. Nc3 {[%clk 0:00:19]}  Qc5 {[%clk 0:00:38]} 31. Be3 {[%clk 0:00:13]}  Qb4 {[%clk 0:00:38]} 32. a3 {[%clk 0:00:13]}  Qb3 {[%clk 0:00:34]} 33. Bd1 {[%clk 0:00:12]}  Bf5+ {[%clk 0:00:34]} 34. Ka1 {[%clk 0:00:10]}  Qc4 {[%clk 0:00:30]} 35. Be2 {[%clk 0:00:09]}  Qb3 {[%clk 0:00:26]} 36. Bd1 {[%clk 0:00:09]}  Qe6 {[%clk 0:00:27]} 37. Bh6 {[%clk 0:00:09]}  d5 {[%clk 0:00:24]} 38. Bxg7 {[%clk 0:00:10]}  Rxg7 {[%clk 0:00:24]} 39. Nxa4 {[%clk 0:00:05]}  Rc8 {[%clk 0:00:18]} 40. Bb3 {[%clk 0:00:05]}  Nd7 {[%clk 0:00:17]} 41. Rd1 {[%clk 0:00:05]}  Nf6 {[%clk 0:00:18]} 42. Rg3 {[%clk 0:00:03]}  Be4 {[%clk 0:00:15]} 43. Nc3 {[%clk 0:00:03]}  Rh7 {[%clk 0:00:13]} 44. Qg1 {[%clk 0:00:02]}  Rg7 {[%clk 0:00:13]} 45. Qf1 {[%clk 0:00:02]}  Rxc3 {[%clk 0:00:11]} 46. Rxc3 {[%clk 0:00:01]}  Qf5 {[%clk 0:00:12]} 47. f3 {[%clk 0:00:02]}  Rf7 {[%clk 0:00:05]} 48. fxe4 {[%clk 0:00:02]}  Qxf1 {[%clk 0:00:06]} 49. Rxf1 {[%clk 0:00:03]}  Nxe4 {[%clk 0:00:07]} 50. Rxf7 {[%clk 0:00:03]} 1-0


[Site "https://www.chess.com"]

[Event "Titled Tuesday Blitz December 20 Late 2022"]
[White "Moreno Perez, Tobias Sebastian"]
[Black "Ansh M Shah"]
[WhiteFideId "186716"]
[BlackFideId "25033379"]
[WhiteElo "2259"]
[BlackElo "2084"]
[Result "0-1"]
[Round "09"]
[TimeControl "180+1"]
[Date "2022.12.21"]
[WhiteClock "0:00:10"]
[BlackClock "0:00:18"]

1. Nf3 {[%clk 0:03:00]}  Nf6 {[%clk 0:02:59]} 2. b3 {[%clk 0:03:01]}  e6 {[%clk 0:02:59]} 3. Bb2 {[%clk 0:03:01]}  d5 {[%clk 0:03:00]} 4. g3 {[%clk 0:03:01]}  Be7 {[%clk 0:03:01]} 5. Bg2 {[%clk 0:03:01]}  O-O {[%clk 0:03:01]} 6. O-O {[%clk 0:03:02]}  b6 {[%clk 0:03:02]} 7. d3 {[%clk 0:03:03]}  Bb7 {[%clk 0:03:02]} 8. Nbd2 {[%clk 0:03:03]}  Nbd7 {[%clk 0:03:03]} 9. e4 {[%clk 0:03:02]}  c5 {[%clk 0:03:03]} 10. e5 {[%clk 0:03:01]}  Ne8 {[%clk 0:03:04]} 11. h4 {[%clk 0:03:00]}  d4 {[%clk 0:02:59]} 12. Re1 {[%clk 0:02:56]}  Qc7 {[%clk 0:02:59]} 13. a4 {[%clk 0:02:52]}  a6 {[%clk 0:02:57]} 14. Nc4 {[%clk 0:02:51]}  b5 {[%clk 0:02:44]} 15. axb5 {[%clk 0:02:52]}  axb5 {[%clk 0:02:44]} 16. Rxa8 {[%clk 0:02:51]}  Bxa8 {[%clk 0:02:45]} 17. Ncd2 {[%clk 0:02:50]}  Nb6 {[%clk 0:02:34]} 18. b4 {[%clk 0:02:48]}  cxb4 {[%clk 0:02:29]} 19. Bxd4 {[%clk 0:02:47]}  Bc5 {[%clk 0:02:27]} 20. Nb3 {[%clk 0:02:40]}  Bxd4 {[%clk 0:02:26]} 21. Nbxd4 {[%clk 0:02:40]}  Qd7 {[%clk 0:02:23]} 22. Qd2 {[%clk 0:02:28]}  Nd5 {[%clk 0:02:15]} 23. Ng5 {[%clk 0:02:19]}  h6 {[%clk 0:02:06]} 24. Ne4 {[%clk 0:02:16]}  Nec7 {[%clk 0:02:07]} 25. Nb3 {[%clk 0:02:12]}  Nc3 {[%clk 0:01:46]} 26. Nxc3 {[%clk 0:02:10]}  bxc3 {[%clk 0:01:47]} 27. Qxc3 {[%clk 0:02:11]}  Bxg2 {[%clk 0:01:48]} 28. Kxg2 {[%clk 0:02:11]}  Nd5 {[%clk 0:01:48]} 29. Qd4 {[%clk 0:02:07]}  Qb7 {[%clk 0:01:42]} 30. Kg1 {[%clk 0:02:05]}  Rc8 {[%clk 0:01:38]} 31. Re2 {[%clk 0:01:05]}  Nc3 {[%clk 0:01:09]} 32. Rd2 {[%clk 0:01:03]}  Nb1 {[%clk 0:01:09]} 33. Rd1 {[%clk 0:01:03]}  Na3 {[%clk 0:01:09]} 34. c3 {[%clk 0:00:51]}  Nc2 {[%clk 0:01:03]} 35. Qd6 {[%clk 0:00:35]}  Rxc3 {[%clk 0:00:50]} 36. Nc5 {[%clk 0:00:32]}  Qd5 {[%clk 0:00:43]} 37. Qb8+ {[%clk 0:00:28]}  Kh7 {[%clk 0:00:43]} 38. Ne4 {[%clk 0:00:28]}  Rxd3 {[%clk 0:00:34]} 39. Rxd3 {[%clk 0:00:19]}  Qxd3 {[%clk 0:00:30]} 40. Nd6 {[%clk 0:00:19]}  Qd1+ {[%clk 0:00:22]} 41. Kh2 {[%clk 0:00:18]}  Qf3 {[%clk 0:00:20]} 42. Qxb5 {[%clk 0:00:12]}  Qxf2+ {[%clk 0:00:19]} 43. Kh3 {[%clk 0:00:12]}  Ne3 {[%clk 0:00:18]} 44. Qd3+ {[%clk 0:00:11]}  g6 {[%clk 0:00:18]} 45. Ne4 {[%clk 0:00:10]}  Qg2# {[%clk 0:00:18]} 0-1


[Site "https://www.chess.com"]